bitfinex/quotes_BTCUSD_20241011
["timestamp","ask_amount","ask_price","bid_price","bid_amount"]
[1728655620224,0.06702269,61942.0,61941.0,0.49213815]
[1728655620630,0.06702269,61942.0,61941.0,0.54142899]
[1728655621514,0.051917,61942.0,61941.0,0.54142899]
[1728655621722,0.000818,61950.0,61949.0,0.289423]
[1728655621933,0.02517549,61961.0,61958.0,0.184399]
[1728655622140,0.04086718,61963.0,61958.0,0.73623624]
[1728655622141,0.02466425,61959.0,61958.0,0.73623624]
[1728655622360,0.04086718,61963.0,61961.0,0.005]
[1728655622563,0.04036718,61963.0,61962.0,0.47565297]
[1728655622775,0.04036718,61963.0,61962.0,0.49923005]
[1728655623381,0.04036718,61963.0,61962.0,0.47123005]
[1728655623627,0.04036718,61963.0,61962.0,0.17996608]
[1728655623818,0.06449688,61963.0,61962.0,0.17996608]
[1728655624020,0.08665969,61963.0,61962.0,0.17996608]
[1728655624225,0.18565969,61963.0,61962.0,0.17996608]
[1728655624431,0.20674277,61963.0,61962.0,0.17440552]
[1728655624636,0.18565969,61963.0,61962.0,0.17440552]
[1728655624846,0.18647769,61963.0,61962.0,0.17440552]
[1728655625066,0.18647769,61963.0,61962.0,0.18440552]
[1728655625264,0.18647769,61963.0,61962.0,0.17440552]
[1728655625511,0.18647769,61963.0,61962.0,0.18240552]
[1728655625731,0.5,61941.0,61904.0,0.4692]
[1728655625951,0.0812,61924.0,61920.0,0.163131]
[1728655626188,0.35275397,61923.0,61920.0,0.001634]
[1728655626407,0.48747294,61923.0,61920.0,0.001634]
[1728655626642,0.49757843,61923.0,61920.0,0.001634]
[1728655627066,0.49957843,61923.0,61920.0,0.001634]
[1728655627289,0.49957843,61923.0,61922.0,8.9]
[1728655627730,0.49957843,61923.0,61922.0,8.85]
[1728655627956,0.30831446,61923.0,61922.0,8.85]
[1728655628171,0.48746685,61923.0,61922.0,8.851]
[1728655628379,0.29815029,61923.0,61922.0,8.851]
[1728655628607,0.48941426,61923.0,61922.0,8.85]
[1728655628823,0.58722325,61923.0,61922.0,8.851]
[1728655629032,0.58022325,61923.0,61922.0,8.85]
[1728655629291,0.29815029,61923.0,61922.0,8.85]
[1728655629502,0.31725696,61923.0,61922.0,8.852]
[1728655629860,0.31525696,61923.0,61922.0,8.851]
[1728655630089,0.30515029,61923.0,61922.0,8.851]
[1728655630271,0.30715029,61923.0,61922.0,8.852]
[1728655630475,0.30715029,61923.0,61922.0,8.752]
[1728655630688,0.38905029,61923.0,61922.0,7.92907018]
[1728655630872,0.39365795,61923.0,61922.0,7.65457018]
[1728655631080,0.66562325,61923.0,61922.0,7.65457018]
[1728655631290,0.67362325,61923.0,61922.0,7.65557018]
[1728655631918,0.66562325,61923.0,61922.0,7.65457018]
[1728655632130,0.56562325,61923.0,61922.0,7.65457018]
[1728655632339,0.57162325,61923.0,61922.0,7.65457018]
[1728655632541,0.56362325,61923.0,61922.0,7.65357018]
[1728655632745,0.57762325,61923.0,61922.0,7.65457018]
[1728655632973,0.76093255,61923.0,61922.0,7.65557018]
[1728655633181,0.72282569,61923.0,61922.0,7.65457018]
[1728655633595,0.73182569,61923.0,61922.0,7.65557018]
[1728655633820,0.75183413,61923.0,61922.0,7.65557018]
[1728655634602,0.73783413,61923.0,61922.0,7.65457018]
[1728655634803,0.87215155,61923.0,61922.0,7.65557018]
[1728655635015,0.88415329,61923.0,61922.0,7.65557018]
[1728655635226,0.87915329,61923.0,61922.0,7.65557018]
[1728655635424,0.80225329,61923.0,61922.0,7.65557018]
[1728655635839,0.66387618,61923.0,61922.0,7.65557018]
[1728655636641,0.65187444,61923.0,61922.0,7.65720618]
[1728655636898,1.26827856,61923.0,61922.0,6.92597636]
[1728655637104,1.29226872,61923.0,61922.0,6.92597636]
[1728655637313,1.46171142,61923.0,61922.0,6.92597636]
[1728655637707,1.43971142,61923.0,61922.0,6.92397636]
[1728655637917,1.43971142,61923.0,61922.0,6.92497636]
[1728655638129,1.43971142,61923.0,61922.0,6.92597636]
[1728655638130,1.46171142,61923.0,61922.0,6.92597636]
[1728655638349,1.46371142,61923.0,61922.0,6.92497636]
[1728655638569,1.46371142,61923.0,61922.0,6.92597636]
[1728655638795,2.93738383,61923.0,61922.0,6.92597636]
[1728655639461,2.92338383,61923.0,61922.0,6.28534654]
[1728655639675,2.92138383,61923.0,61922.0,6.28534654]
[1728655639883,2.93738383,61923.0,61922.0,6.28534654]
[1728655640310,2.93538383,61923.0,61922.0,6.28534654]
[1728655640525,2.65331087,61923.0,61922.0,6.28534654]
[1728655640786,2.65531087,61923.0,61922.0,6.28534654]
[1728655641767,2.66541941,61923.0,61922.0,6.28534654]
[1728655641937,2.66341941,61923.0,61922.0,6.28534654]
[1728655642476,2.65331087,61923.0,61922.0,6.28534654]
[1728655642714,2.65331087,61923.0,61922.0,6.5674195]
[1728655642715,0.41378476,61923.0,61922.0,6.5674195]
[1728655643145,0.3947946,61923.0,61922.0,6.5665195]
[1728655643346,0.2333046,61923.0,61922.0,6.5665195]
[1728655643575,0.3947946,61923.0,61922.0,6.5665195]
[1728655643792,0.3807946,61923.0,61922.0,6.5664195]
[1728655643998,0.59586796,61923.0,61922.0,6.5657195]
[1728655644268,0.61981201,61923.0,61922.0,6.28344654]
[1728655644525,0.619817,61923.0,61922.0,6.28344654]
[1728655644789,0.59179158,61923.0,61922.0,6.28224654]
[1728655645022,0.50569306,61923.0,61922.0,6.5645195]
[1728655645526,0.50569306,61923.0,61922.0,6.5644195]
[1728655645782,0.50569306,61923.0,61922.0,6.5637195]
[1728655646029,0.50569306,61923.0,61922.0,5.59451319]
[1728655646306,1.20619306,61923.0,61922.0,5.41157279]
[1728655646545,6.26630213,61923.0,61922.0,5.41913819]
[1728655646775,6.26630213,61923.0,61922.0,5.41853819]
[1728655647027,3.82998713,61923.0,61922.0,5.41853819]
[1728655647278,3.5644587,61923.0,61922.0,5.41843819]
[1728655647519,3.41587914,61923.0,61922.0,5.41843819]
[1728655647729,2.55289814,61923.0,61922.0,5.41843819]
[1728655647954,1.37208014,61923.0,61922.0,5.41843819]
[1728655648158,1.16280457,61923.0,61922.0,5.41743819]
[1728655648384,1.14864857,61923.0,61922.0,5.41843819]
[1728655648608,0.44177557,61923.0,61922.0,5.41843819]
[1728655648822,0.44177557,61923.0,61922.0,5.41743819]
[1728655648823,0.44179082,61923.0,61922.0,5.41743819]
[1728655649041,0.44179082,61923.0,61922.0,5.41843819]
[1728655649247,0.44276351,61923.0,61922.0,5.41743819]
[1728655649452,0.41281614,61923.0,61922.0,5.41743819]
[1728655649661,0.42181614,61923.0,61922.0,5.69951115]
[1728655649878,0.3977083,61923.0,61922.0,5.69951115]
[1728655650080,0.4117083,61923.0,61922.0,5.69951115]
[1728655650489,0.3977083,61923.0,61922.0,5.69951115]
[1728655650907,0.40781432,61923.0,61922.0,5.69951115]
[1728655651130,0.39381432,61923.0,61922.0,5.69951115]
[1728655651551,0.3837083,61923.0,61922.0,5.69951115]
[1728655651972,0.35777414,61923.0,61922.0,5.70051115]
[1728655652386,0.22027757,61923.0,61922.0,5.69951115]
[1728655652428,0.422927,61934.0,61922.0,5.69951115]
[1728655652429,0.002,61932.0,61922.0,6.15102681]
[1728655652638,0.1693093,61931.0,61923.0,0.0984]
[1728655652856,0.002,61928.0,61925.0,0.44355596]
[1728655653084,0.0101034,61938.0,61925.0,0.44355596]
[1728655653085,0.002,61937.0,61930.0,0.161472]
[1728655653310,0.002,61937.0,61927.0,0.32413828]
[1728655653311,0.3327633,61937.0,61936.0,0.28207296]
[1728655653525,0.35790209,61937.0,61936.0,0.28207296]
[1728655653743,0.35790209,61937.0,61936.0,0.29043947]
[1728655653966,0.35790209,61937.0,61936.0,0.28207296]
[1728655654199,0.35790209,61937.0,61936.0,0.00834084]
[1728655654626,0.16348,61927.0,61926.0,0.28207296]
[1728655654846,0.34289262,61927.0,61926.0,0.28207296]
[1728655655059,0.35792809,61927.0,61926.0,0.2904689]
[1728655655281,0.19444809,61927.0,61926.0,0.4519519]
[1728655655522,0.02513935,61927.0,61926.0,0.4519519]
[1728655655735,0.02514486,61932.0,61931.0,0.16147]
[1728655655964,0.02514486,61933.0,61932.0,0.161467]
[1728655656215,0.1693093,61933.0,61932.0,0.161467]
[1728655656430,0.1713093,61933.0,61932.0,0.00837467]
[1728655656641,0.3327733,61933.0,61932.0,0.29044763]
[1728655656854,0.1693093,61933.0,61932.0,0.44353996]
[1728655657065,0.1693093,61933.0,61932.0,0.53021463]
[1728655657493,0.005,61946.0,61932.0,0.53021463]
[1728655657494,0.0021,61941.0,61932.0,0.39122943]
[1728655657702,0.02512721,61936.0,61933.0,0.0986]
[1728655657911,0.002,61938.0,61935.0,0.28207296]
[1728655658122,0.1713093,61937.0,61935.0,0.28207296]
[1728655658330,0.002,61935.0,61933.0,0.0986]
[1728655658552,0.3327713,61934.0,61933.0,0.0986]
[1728655659949,0.3327713,61934.0,61933.0,0.1016]
[1728655660802,0.1713093,61934.0,61933.0,0.1016]
[1728655660980,0.1733093,61934.0,61933.0,0.1016]
[1728655661433,0.1713093,61934.0,61933.0,0.0986]
[1728655661645,0.1803093,61934.0,61933.0,0.0996]
[1728655662099,0.1803093,61934.0,61933.0,0.0986]
[1728655662100,0.1713093,61934.0,61933.0,0.0986]
[1728655662310,0.35685416,61934.0,61933.0,0.0996]
[1728655662562,0.35685416,61934.0,61933.0,0.0986]
[1728655662982,0.35685416,61934.0,61933.0,0.0996]
[1728655663197,0.39594576,61934.0,61933.0,0.0986]
[1728655663614,0.38622036,61934.0,61933.0,0.0986]
[1728655664053,0.40130336,61934.0,61933.0,0.0986]
[1728655664238,0.39322036,61934.0,61933.0,0.0986]
[1728655664452,0.002,61929.0,61927.0,0.28207296]
[1728655664668,0.06327279,61928.0,61927.0,0.28207296]
[1728655665300,0.06327279,61928.0,61922.0,5.73245879]
[1728655665301,0.5,61909.0,61890.0,0.04720292]
[1728655665500,0.1,61895.0,61891.0,0.04720292]
[1728655665697,0.1,61895.0,61879.0,0.001636]
[1728655665698,0.002,61880.0,61879.0,0.001636]
[1728655665870,0.163603,61880.0,61879.0,0.001636]
[1728655666075,0.1616,61881.0,61879.0,0.001636]
[1728655666455,0.163603,61880.0,61879.0,0.001636]
[1728655667202,0.3329123,61880.0,61879.0,0.001636]
[1728655667848,0.3309123,61880.0,61879.0,0.001636]
[1728655668049,0.1693093,61880.0,61879.0,0.001636]
[1728655668306,0.1713093,61880.0,61879.0,0.001636]
[1728655668610,0.3409123,61880.0,61879.0,0.002636]
[1728655668826,0.1793093,61880.0,61879.0,0.002636]
[1728655669041,0.1713093,61880.0,61879.0,0.001636]
[1728655669257,0.36500829,61880.0,61879.0,0.001636]
[1728655669502,0.40009338,61880.0,61879.0,0.001636]
[1728655670140,0.38909338,61880.0,61879.0,0.001636]
[1728655670402,0.40309338,61880.0,61879.0,0.001636]
[1728655670847,0.38909338,61880.0,61879.0,0.001636]
[1728655671265,0.39709338,61880.0,61879.0,0.001636]
[1728655671709,0.40409338,61880.0,61879.0,0.002636]
[1728655671939,0.3459123,61880.0,61879.0,0.001636]
[1728655672154,0.40502484,61880.0,61879.0,0.002636]
[1728655672412,0.40502484,61880.0,61879.0,0.01012132]
[1728655672663,0.39202484,61880.0,61879.0,0.002636]
[1728655672902,0.38402484,61880.0,61879.0,0.001636]
[1728655673112,0.39802484,61880.0,61879.0,0.001636]
[1728655673561,0.38402484,61880.0,61879.0,0.001636]
[1728655673769,0.39702484,61880.0,61879.0,0.001636]
[1728655674198,0.38402484,61880.0,61879.0,0.001636]
[1728655674418,0.39102484,61880.0,61879.0,0.002636]
[1728655674632,0.39502484,61880.0,61879.0,0.001636]
[1728655674818,0.40002484,61880.0,61879.0,0.00912132]
[1728655675030,0.40002484,61880.0,61879.0,0.001636]
[1728655675247,0.40002484,61880.0,61879.0,0.00912132]
[1728655675511,0.40002484,61880.0,61879.0,0.001636]
[1728655675762,0.40002484,61880.0,61879.0,0.00912132]
[1728655676314,0.40002484,61880.0,61879.0,0.10405553]
[1728655676586,0.40002484,61880.0,61879.0,0.08031047]
[1728655676831,0.40002484,61880.0,61879.0,0.05659295]
[1728655677094,0.40002484,61880.0,61879.0,0.00912132]
[1728655678650,0.39998285,61880.0,61879.0,0.00912132]
[1728655680381,0.38799836,61880.0,61879.0,0.00912132]
[1728655680591,0.3639454,61880.0,61879.0,0.00912132]
[1728655680812,0.3639454,61880.0,61879.0,0.45279928]
[1728655680813,0.2003424,61880.0,61879.0,0.45279928]
[1728655681053,0.3469123,61880.0,61879.0,0.29119428]
[1728655681267,0.20028001,61880.0,61879.0,0.29119428]
[1728655681476,0.36188301,61880.0,61879.0,0.29119428]
[1728655681684,0.19528001,61880.0,61879.0,0.29119428]
[1728655682137,0.19528001,61880.0,61879.0,0.29219428]
[1728655682359,0.1693093,61880.0,61879.0,0.29119428]
[1728655682569,0.1743093,61880.0,61879.0,0.45279928]
[1728655682778,0.1763093,61880.0,61879.0,0.45279928]
[1728655683231,0.1763093,61880.0,61879.0,0.29119428]
[1728655683454,0.1713093,61880.0,61879.0,0.29119428]
[1728655683680,0.1713093,61880.0,61879.0,0.45279928]
[1728655683681,0.1793093,61880.0,61879.0,0.45279928]
[1728655683900,0.1793093,61880.0,61879.0,0.29119428]
[1728655684111,0.1773093,61880.0,61879.0,0.29119428]
[1728655684340,0.1693093,61880.0,61879.0,0.45379928]
[1728655685062,0.1693093,61880.0,61879.0,0.37209428]
[1728655685732,0.1743093,61880.0,61879.0,0.53369928]
[1728655688630,0.1763093,61880.0,61879.0,0.53369928]
[1728655689846,0.1743093,61880.0,61879.0,0.53369928]
[1728655690116,0.1743093,61880.0,61879.0,0.25162632]
[1728655690702,0.1693093,61880.0,61879.0,0.69385771]
[1728655691050,0.1693093,61880.0,61879.0,0.63369928]
[1728655691245,0.1693093,61880.0,61879.0,0.53369928]
[1728655691730,0.1713093,61880.0,61879.0,0.00912132]
[1728655691985,0.18732952,61880.0,61879.0,0.01912132]
[1728655692226,0.19132952,61880.0,61879.0,0.17072632]
[1728655692488,0.19132952,61880.0,61879.0,0.164241]
[1728655692730,0.18632952,61880.0,61879.0,0.17241637]
[1728655693004,0.19635692,61880.0,61879.0,0.41482298]
[1728655693233,0.19635692,61880.0,61879.0,0.17241637]
[1728655693234,0.18932952,61880.0,61879.0,0.17241637]
[1728655693676,0.2013695,61880.0,61879.0,0.17241637]
[1728655693905,0.1983695,61880.0,61879.0,0.17141637]
[1728655694121,0.1963695,61880.0,61879.0,0.17241637]
[1728655694331,0.22247748,61880.0,61879.0,0.17141637]
[1728655694542,0.22247748,61880.0,61879.0,0.36213733]
[1728655694751,0.22247748,61880.0,61879.0,0.36413733]
[1728655695194,0.22747748,61880.0,61879.0,0.20253233]
[1728655695464,0.38908048,61880.0,61879.0,0.01181137]
[1728655695698,0.49919219,61880.0,61879.0,0.01181137]
[1728655695920,0.52415709,61880.0,61879.0,0.003636]
[1728655696150,0.50319219,61880.0,61879.0,0.003636]
[1728655696809,0.49919219,61880.0,61879.0,0.001636]
[1728655697255,0.51219219,61880.0,61879.0,0.002636]
[1728655697481,0.46395228,61880.0,61879.0,0.002636]
[1728655697715,0.55041073,61880.0,61879.0,0.003636]
[1728655698193,1.54941769,61880.0,61879.0,0.003636]
[1728655698422,0.002,61866.0,61865.0,0.24240661]
[1728655698661,0.49944673,61866.0,61865.0,0.24240661]
[1728655698877,0.49944673,61866.0,61865.0,0.25066187]
[1728655698878,0.39444673,61866.0,61865.0,0.25066187]
[1728655699138,0.39444673,61866.0,61860.0,0.001634]
[1728655699139,0.163652,61861.0,61860.0,0.001634]
[1728655699366,0.39445973,61861.0,61860.0,0.001634]
[1728655700115,0.39445973,61861.0,61860.0,0.163289]
[1728655700116,0.23280773,61861.0,61860.0,0.163289]
[1728655700778,0.2327918,61861.0,61860.0,0.163289]
[1728655701002,0.2307918,61861.0,61860.0,0.163289]
[1728655701222,0.2347918,61861.0,61860.0,0.163289]
[1728655701897,0.2437918,61861.0,61860.0,0.163289]
[1728655702609,0.2437918,61861.0,61860.0,0.243889]
[1728655702822,0.2336766,61861.0,61860.0,0.243889]
[1728655703056,0.0643673,61861.0,61860.0,0.243889]
[1728655704008,0.06034939,61861.0,61860.0,0.243889]
[1728655704231,0.03719445,61861.0,61860.0,0.249889]
[1728655704448,0.02510803,61861.0,61860.0,0.243889]
[1728655704880,0.03818515,61861.0,61860.0,0.253889]
[1728655705098,0.01407712,61861.0,61860.0,0.253889]
[1728655705734,0.07769412,61875.0,61860.0,0.092234]
[1728655705948,0.1693093,61874.0,61870.0,0.161628]
[1728655706407,0.04935928,61873.0,61869.0,0.161631]
[1728655706631,0.21866858,61872.0,61870.0,0.161628]
[1728655706856,0.04935928,61871.0,61870.0,0.161628]
[1728655707099,0.21866858,61871.0,61870.0,0.161628]
[1728655707810,0.03924591,61871.0,61870.0,0.161628]
[1728655708050,0.03924591,61871.0,61870.0,0.240528]
[1728655708283,0.03924591,61871.0,61870.0,0.373228]
[1728655708546,0.005,61885.0,61879.0,0.161605]
[1728655708806,0.21019218,61880.0,61879.0,0.161605]
[1728655709757,0.21019218,61880.0,61879.0,0.16987588]
[1728655709981,0.37179518,61880.0,61879.0,0.00827088]
[1728655710439,0.21019218,61880.0,61876.0,0.323227]
[1728655710664,0.00164,61880.0,61879.0,0.16984184]
[1728655710874,0.04088529,61880.0,61879.0,0.161605]
[1728655711096,0.04388529,61880.0,61879.0,0.00823684]
[1728655711774,0.1819493,61880.0,61877.0,0.161609]
[1728655711990,0.1819493,61880.0,61875.0,0.56563561]
[1728655711991,0.20855544,61879.0,61876.0,0.323224]
[1728655712216,0.03924614,61878.0,61877.0,0.161609]
[1728655712437,0.20855544,61878.0,61877.0,0.161609]
[1728655713128,0.20855544,61878.0,61873.0,0.28262019]
[1728655713363,0.20855544,61877.0,61876.0,0.161613]
[1728655714453,0.18440397,61877.0,61876.0,0.161613]
[1728655715102,0.1693093,61877.0,61876.0,0.161613]
[1728655715354,0.18440505,61877.0,61876.0,0.161613]
[1728655715572,0.01509575,61877.0,61876.0,0.161613]
[1728655715786,0.02009575,61877.0,61876.0,0.161613]
[1728655716704,0.21355934,61877.0,61870.0,0.0789]
[1728655716933,0.00164,61880.0,61867.0,0.24240661]
[1728655716934,0.1693093,61873.0,61867.0,0.24240661]
[1728655717149,0.161634,61868.0,61867.0,0.24240661]
[1728655717358,0.37019334,61868.0,61867.0,0.24240661]
[1728655717573,0.20855934,61868.0,61867.0,0.24240661]
[1728655717818,0.161641,61866.0,61864.0,0.0755]
[1728655718031,0.22063991,61865.0,61864.0,0.237144]
[1728655718256,0.22063991,61865.0,61864.0,0.0755]
[1728655718470,0.22065063,61865.0,61864.0,0.237144]
[1728655718683,0.22065063,61865.0,61864.0,0.07632]
[1728655718907,0.2206512,61865.0,61864.0,0.237964]
[1728655719374,0.2286512,61865.0,61864.0,0.237964]
[1728655719590,0.20449,61865.0,61864.0,0.07632]
[1728655719796,0.22065322,61865.0,61864.0,0.237964]
[1728655720010,0.22465322,61865.0,61864.0,0.237964]
[1728655720751,0.22465322,61865.0,61864.0,0.07632]
[1728655720992,0.38629522,61865.0,61864.0,0.00182]
[1728655721238,0.37421491,61865.0,61864.0,0.00182]
[1728655721480,0.38629767,61865.0,61864.0,0.00182]
[1728655721729,0.38629767,61865.0,61864.0,0.00082]
[1728655721730,0.38231187,61865.0,61864.0,0.00082]
[1728655721970,0.39031187,61865.0,61864.0,0.00082]
[1728655722208,0.22866983,61865.0,61864.0,0.00082]
[1728655722446,0.22066983,61865.0,61864.0,0.162464]
[1728655722685,0.22066983,61865.0,61864.0,0.00082]
[1728655722686,0.38231183,61865.0,61864.0,0.00082]
[1728655722918,0.36514215,61865.0,61864.0,0.00082]
[1728655723132,0.39231312,61865.0,61864.0,0.00082]
[1728655723347,0.3460361,61865.0,61864.0,0.00082]
[1728655723559,0.38231823,61865.0,61864.0,0.00082]
[1728655723772,0.38531823,61865.0,61864.0,0.00082]
[1728655723980,0.22067623,61865.0,61864.0,0.00082]
[1728655724193,0.35814461,61865.0,61864.0,0.00082]
[1728655724407,0.38831809,61865.0,61864.0,0.00182]
[1728655724616,0.39331809,61865.0,61864.0,0.00182]
[1728655724831,0.40131809,61865.0,61864.0,0.00182]
[1728655725041,0.3620361,61865.0,61864.0,0.00182]
[1728655725288,0.40132778,61865.0,61864.0,0.00182]
[1728655725514,0.39332778,61865.0,61864.0,0.00182]
[1728655725728,0.40732778,61865.0,61864.0,0.00182]
[1728655726168,0.50132778,61865.0,61864.0,0.00082]
[1728655726396,0.51432778,61865.0,61864.0,0.00182]
[1728655726653,0.53732778,61865.0,61864.0,0.00182]
[1728655726874,0.53732778,61865.0,61864.0,0.00082]
[1728655727102,0.55032778,61865.0,61864.0,0.00182]
[1728655727787,0.55032778,61865.0,61864.0,0.00082]
[1728655727788,0.52432778,61865.0,61864.0,0.00082]
[1728655728058,0.51032778,61865.0,61864.0,0.00082]
[1728655728264,0.51032778,61865.0,61864.0,0.00182]
[1728655728265,0.52432778,61865.0,61864.0,0.00182]
[1728655728478,0.53832778,61865.0,61864.0,0.00182]
[1728655728685,1.12071704,61865.0,61864.0,0.00182]
[1728655728892,1.11871704,61865.0,61864.0,0.00182]
[1728655729401,0.92782378,61865.0,61864.0,0.00182]
[1728655729648,0.92982378,61865.0,61864.0,0.00182]
[1728655730386,1.12071704,61865.0,61864.0,0.00182]
[1728655730659,1.22811704,61865.0,61864.0,0.00182]
[1728655731184,1.22821704,61865.0,61864.0,0.00182]
[1728655731426,1.28660746,61865.0,61864.0,0.00182]
[1728655731673,1.21421704,61865.0,61864.0,0.00182]
[1728655731886,1.30060746,61865.0,61864.0,0.00182]
[1728655732099,1.40633102,61865.0,61864.0,0.00182]
[1728655732495,1.21221704,61865.0,61864.0,0.00082]
[1728655732717,1.29856993,61865.0,61864.0,0.00082]
[1728655732963,1.10767667,61865.0,61864.0,0.00082]
[1728655733145,1.66503704,61865.0,61864.0,0.00082]
[1728655734254,1.57008004,61865.0,61864.0,0.00082]
[1728655734498,1.57208004,61865.0,61864.0,0.00082]
[1728655734721,1.62029511,61865.0,61864.0,0.00082]
[1728655734942,1.57208004,61865.0,61864.0,0.00082]
[1728655735177,1.57191193,61865.0,61864.0,0.00082]
[1728655735400,0.51525967,61865.0,61864.0,0.00082]
[1728655736527,0.51525967,61865.0,61850.0,0.001636]
[1728655736528,0.028,61851.0,61850.0,0.001636]
[1728655736759,0.91435237,61851.0,61850.0,0.001636]
[1728655736973,0.94672437,61851.0,61850.0,0.001636]
[1728655737189,0.89255737,61851.0,61850.0,0.001636]
[1728655737416,0.789689,61847.0,61835.0,0.24240661]
[1728655737637,1.1922416,61847.0,61844.0,0.24240661]
[1728655737854,2.68034393,61847.0,61835.0,0.24240661]
[1728655738102,3.49545793,61847.0,61835.0,0.24240661]
[1728655738558,3.60191428,61847.0,61835.0,0.24240661]
[1728655738774,0.005,61836.0,61835.0,0.24240661]
[1728655738939,0.38723567,61836.0,61835.0,0.24240661]
[1728655739376,0.38723567,61836.0,61822.0,0.0814]
[1728655739377,0.161731,61831.0,61822.0,0.0814]
[1728655739713,0.38224867,61831.0,61822.0,0.0814]
[1728655740680,0.39224867,61831.0,61822.0,0.0814]
[1728655740880,0.61683867,61831.0,61823.0,0.24240661]
[1728655741265,0.61680855,61831.0,61823.0,0.24240661]
[1728655741968,0.49721855,61831.0,61823.0,0.24240661]
[1728655742205,0.40121855,61831.0,61817.0,0.001636]
[1728655742415,0.66473055,61831.0,61824.0,0.24240661]
[1728655742621,0.74073055,61831.0,61824.0,0.24240661]
[1728655743079,0.76873055,61831.0,61824.0,0.24240661]
[1728655743768,0.52421855,61831.0,61824.0,0.24240661]
[1728655744011,1.52873755,61831.0,61824.0,0.24240661]
[1728655744265,1.51473755,61831.0,61824.0,0.24240661]
[1728655744561,0.90711355,61831.0,61824.0,0.24240661]
[1728655744787,0.75054019,61831.0,61824.0,0.24240661]
[1728655745042,0.69709819,61831.0,61824.0,0.24240661]
[1728655745256,0.51517419,61831.0,61824.0,0.24240661]
[1728655748107,0.51520134,61831.0,61824.0,0.24240661]
[1728655750342,0.53125572,61831.0,61824.0,0.24240661]
[1728655751192,0.51520134,61831.0,61824.0,0.24240661]
[1728655751401,0.53125572,61831.0,61824.0,0.24240661]
[1728655751617,0.42625572,61831.0,61829.0,0.0756]
[1728655751831,0.41519789,61831.0,61829.0,0.0756]
[1728655752292,0.41519789,61831.0,61822.0,0.0792]
[1728655752500,0.40325866,61831.0,61822.0,0.0792]
[1728655752715,0.39719789,61831.0,61822.0,0.0792]
[1728655752893,0.41119789,61831.0,61822.0,0.0792]
[1728655753135,0.40119789,61831.0,61822.0,0.0792]
[1728655753357,0.41519789,61831.0,61822.0,0.0792]
[1728655753790,0.40119789,61831.0,61822.0,0.0792]
[1728655753958,0.41519789,61831.0,61822.0,0.0792]
[1728655754175,0.40119789,61831.0,61822.0,0.0792]
[1728655754524,0.41519789,61831.0,61822.0,0.0792]
[1728655754950,0.40119789,61831.0,61822.0,0.0792]
[1728655755390,0.41519789,61831.0,61822.0,0.0792]
[1728655755618,0.40325618,61831.0,61822.0,0.0792]
[1728655755825,0.43462888,61831.0,61830.0,0.00068152]
[1728655757676,0.53462888,61831.0,61830.0,0.00068152]
[1728655758358,0.53462888,61831.0,61830.0,0.00053032]
[1728655758819,0.53462888,61831.0,61821.0,0.0005]
[1728655758820,0.666754,61822.0,61821.0,0.0005]
[1728655759041,3.45581348,61822.0,61821.0,0.0005]
[1728655759256,3.36461462,61822.0,61821.0,0.0005]
[1728655759477,3.36461462,61822.0,61817.0,0.001636]
[1728655759478,0.189765,61818.0,61817.0,0.001636]
[1728655759697,0.59049262,61818.0,61817.0,0.001636]
[1728655759919,0.69049262,61818.0,61817.0,0.001636]
[1728655760331,0.67839262,61818.0,61817.0,0.001636]
[1728655760541,0.54374262,61818.0,61817.0,0.001636]
[1728655761450,0.42974262,61818.0,61817.0,0.001636]
[1728655761667,0.43474262,61818.0,61817.0,0.001636]
[1728655762535,0.3870743,61818.0,61817.0,0.001636]
[1728655762754,0.45775323,61818.0,61817.0,0.001636]
[1728655764138,1.67885323,61818.0,61817.0,0.001636]
[1728655764404,2.93876023,61818.0,61817.0,0.001636]
[1728655764669,0.789775,61814.0,61813.0,0.00082]
[1728655764945,1.02976323,61814.0,61813.0,0.00082]
[1728655766534,0.789801,61804.0,61803.0,0.000819]
[1728655766752,4.18810023,61804.0,61803.0,0.000819]
[1728655766978,3.06381629,61804.0,61803.0,0.000819]
[1728655767194,2.9822681,61804.0,61803.0,0.000819]
[1728655767438,2.9802681,61804.0,61803.0,0.000819]
[1728655767653,2.9822681,61804.0,61803.0,0.000819]
[1728655767921,3.1655774,61804.0,61803.0,0.000819]
[1728655768139,4.9608494,61804.0,61803.0,0.000819]
[1728655768353,5.04239759,61804.0,61803.0,0.000819]
[1728655768575,2.49187038,61804.0,61803.0,0.000819]
[1728655768803,2.23892219,61804.0,61803.0,0.000819]
[1728655769269,1.63392219,61804.0,61803.0,0.000819]
[1728655769485,1.64792219,61804.0,61803.0,0.000819]
[1728655769707,0.35047917,61804.0,61803.0,0.000819]
[1728655769940,0.38971476,61804.0,61803.0,0.000819]
[1728655770158,0.41671476,61804.0,61803.0,0.000819]
[1728655770605,0.40271476,61804.0,61803.0,0.000819]
[1728655770828,0.40771476,61804.0,61803.0,0.000819]
[1728655771050,0.41671476,61804.0,61803.0,0.000819]
[1728655773137,0.40161052,61804.0,61803.0,0.000819]
[1728655773363,0.41670332,61804.0,61803.0,0.000819]
[1728655774018,0.25490232,61804.0,61803.0,0.19205221]
[1728655774306,0.25490232,61804.0,61803.0,0.162623]
[1728655774523,0.25490232,61804.0,61803.0,0.129119]
[1728655774984,0.24090232,61804.0,61803.0,0.129119]
[1728655775202,0.26606688,61804.0,61803.0,0.129119]
[1728655775459,0.43386788,61804.0,61803.0,0.129119]
[1728655775687,0.24690232,61804.0,61803.0,0.129119]
[1728655775910,0.39570332,61804.0,61803.0,0.129119]
[1728655776127,0.23390232,61804.0,61803.0,0.129119]
[1728655776352,0.39570332,61804.0,61803.0,0.129119]
[1728655776582,0.40370332,61804.0,61803.0,0.129119]
[1728655776806,0.39570332,61804.0,61803.0,0.129119]
[1728655777049,0.38970332,61804.0,61803.0,0.129119]
[1728655777277,0.39670332,61804.0,61803.0,0.129119]
[1728655777506,0.40370332,61804.0,61803.0,0.129119]
[1728655777731,0.24690232,61804.0,61803.0,0.48215621]
[1728655777949,0.23290232,61804.0,61803.0,0.48215621]
[1728655778182,0.24590232,61804.0,61803.0,0.32035221]
[1728655778407,0.24590232,61804.0,61803.0,0.48215621]
[1728655778628,0.23290232,61804.0,61803.0,0.48215621]
[1728655779055,0.23790232,61804.0,61803.0,0.48215621]
[1728655779277,0.24490232,61804.0,61803.0,0.48215621]
[1728655779511,0.23790232,61804.0,61803.0,0.48215621]
[1728655779951,0.2177537,61804.0,61803.0,0.48215621]
[1728655780165,0.24192521,61804.0,61803.0,0.48215621]
[1728655781137,0.24192521,61804.0,61803.0,0.55965621]